Cogmind - Beta 9.6 @@@ ROGUE MODE // 2020.06.08 @ 11:02:46 Player: K.Ioz Result: Destroyed by S-10 Pest with Light Assault Rifle Performance ------------- Evolutions (0) 0 Regions Visited (1) 200 Robots Destroyed (9) 45 Value Destroyed (108) 108 Prototype IDs (2) 40 Alien Tech Used (0) 0 Bonus (0) 0 TOTAL SCORE: 393 Bonus ------- None Cogmind --------- Core Integrity 0/250 Matter 300/300 Energy 100/100 System Corruption 0% Temperature Cool (0) Movement Core (100) Ox1 Location -10/Materials Parts ------- > --- POWER (1) -------- (None) > --- PROPULSION (2) --- (None) > --- UTILITY (2) ------ Small Storage Unit > --- WEAPON (2) ------- (None) > --- INVENTORY (6) ---- Light Ion Engine Light Treads Light Treads Medium Matter Pod (100) Heavy EM Pulse Gun Medium Laser Peak State ------------ > --- POWER ------------ Ion Engine > --- PROPULSION ------- Aluminum Leg Aluminum Leg > --- UTILITY ---------- Small Storage Unit Shield Generator > --- WEAPON ----------- EM Pulse Gun Light Assault Rifle > --- INVENTORY -------- Light Ion Engine Light Treads Light Treads Medium Matter Pod Medium Laser [Rating: 8] Favorites ----------- Power Ion Engine Engine Ion Engine Propulsion Aluminum Leg Leg Aluminum Leg Utility Small Storage Unit Device Shield Generator Storage Small Storage Unit Weapon Light Assault Rifle Energy Gun EM Pulse Gun Ballistic Gun Light Assault Rifle Build | -11 -10 ------- Run | Scr Mat Slots Evolved . | . . Power . | . . Propulsion . | . . Utility . | . . Weapon . | . . Parts Attached 7 | 6 1 Power 1 | 1 . Engine 1 | 1 . Core . | . . Reactor . | . . Propulsion 2 | 2 . Treads . | . . Leg 2 | 2 . Wheel . | . . Hover . | . . Flight . | . . Utility 2 | 1 1 Device 1 | . 1 Storage 1 | 1 . Processor . | . . Hackware . | . . Protection . | . . Artifact . | . . Weapon 2 | 2 . Energy Gun 1 | 1 . Energy Cannon . | . . Ballistic Gun 1 | 1 . Ballistic Cannon . | . . Launcher . | . . Special Weapon . | . . Impact Weapon . | . . Slashing Weapon . | . . Piercing Weapon . | . . Special Melee Weapon . | . . Unidentified Prototypes . | . . Parts Lost . | . . Power . | . . Propulsion . | . . Utility . | . . Weapon . | . . Highest Loss Streak . | . . Average Slot Usage (%) 91 | . 91 Engine 12 | . 12 Leg 25 | . 25 Device 12 | . 12 Storage 14 | . 14 Energy Gun 12 | . 12 Ballistic Gun 12 | . 12 Naked Turns . | . . Heaviest Build 14 | 12 14 Greatest Support 20 | 20 20 Greatest Overweight (x) 2 | . 2 Average Overweight (x) . | . . Largest Inventory Capacity 6 | 6 6 Average Capacity 5 | 5 6 Most Carried 6 | 4 6 Average Carried 5 | 1 5 Final Capacity 6 | 6 6 Final Carried 6 | 4 6 Class Distribution -------------------- 100% | Mutant Dominant Class ---------------- Mutant | -10/Materials Resources | -11 -10 ----------- Run | Scr Mat Matter Collected 388 | 231 157 Remotely . | . . Salvage Created 165 | . 165 Parts 25 | . 25 Haulers Intercepted . | . . Recyclers Shooed 1 | . 1 Parts Field Recycled . | . . Retrieved Matter . | . . Parts Self-Destructed . | . . Prevented . | . . Kills | -11 -10 ------- Run | Scr Mat Combat Hostiles Destroyed 6 | . 6 Guns 6 | . 6 Classes Destroyed 2 | . 2 Watcher 3 | . 3 Swarmer 6 | . 6 Best Kill Streak 4 | . 4 Combat Bots Only 3 | . 3 Max Kills in Single Turn 1 | . 1 Gunslinging . | . . Exploded . | . . Melee . | . . Uniques/NPCs Destroyed . | . . Combat | -11 -10 -------- Run | Scr Mat Damage Taken 374 | . 374 Core 258 | . 258 Absorbed by Shields 40 | . 40 Core Remaining (%) 100 | 100 . Volleys Fired 18 | . 18 Largest 2 | . 2 Hottest 60 | . 60 Shots Fired 36 | . 36 Gun 36 | . 36 Cannon . | . . Launcher . | . . Special . | . . Kinetic 18 | . 18 Thermal . | . . Explosive . | . . Electromagnetic 18 | . 18 Robot Hit Streak 8 | . 8 Robot Miss Streak 3 | . 3 Penetration Max . | . . Secondary Targets 1 | . 1 Max Gunslinging Chain 1 | . 1 Shots Hit Robots 24 | . 24 Core Hits 13 | . 13 Critical Hits . | . . Critical Kills . | . . Critical Parts Destroyed . | . . Melee Attacks . | . . Impact . | . . Slashing . | . . Piercing . | . . Sneak Attacks . | . . Combat Hostiles . | . . Follow-up Attacks . | . . Damage Inflicted 278 | . 278 Guns 278 | . 278 Cannons . | . . Explosions . | . . Melee . | . . Ramming . | . . Kinetic 108 | . 108 Thermal . | . . Explosive . | . . Electromagnetic 170 | . 170 Impact . | . . Slashing . | . . Piercing . | . . Highest Corruption . | . . Average Corruption . | . . Corruption Purged . | . . Overload Shots . | . . Overflow Damage . | . . Projectiles . | . . Explosions . | . . Melee . | . . Knockbacks . | . . Impact . | . . Kinetic . | . . Secondary . | . . Self-Inflicted Damage . | . . Shots . | . . Rammed . | . . Targets Rammed . | . . Kicked . | . . Crushed . | . . Highest Temperature 60 | . 60 Average Temperature 24 | . 24 Received Heat Transfer . | . . Siege Activations . | . . Robots Corrupted . | . . Combat Hostiles . | . . Parts Fried 1 | . 1 Impact Corruptions . | . . Robots Melted . | . . Combat Hostiles . | . . Parts Melted . | . . Heat Transferred . | . . Parts Sabotaged . | . . Parts Stolen . | . . Parts Stripped . | . . Power Chain Reactions . | . . Missiles Intercepted . | . . Alert | -11 -10 ------- Run | Scr Mat Peak Influence 136 | . 136 Average Influence 43 | . 47 Maximum Alert Level . | . . Low Security (%) 100 | 100 100 Level 1 . | . . Level 2 . | . . Level 3 . | . . Level 4 . | . . Level 5 . | . . High Security . | . . Max Security . | . . Squads Dispatched 1 | . 1 Investigation . | . . Extermination . | . . Reinforcement 1 | . 1 Assault . | . . Garrison . | . . Intercept . | . . Construction Impeded . | . . Haulers Reinforced . | . . Stealth | -11 -10 --------- Run | Scr Mat Distress Signals 2 | . 2 Communications Jammed . | . . Distress Signals . | . . Times Spotted 14 | . 14 Peak Tracking Total 4 | . 4 Tactical Retreats 2 | . 2 Traps | -11 -10 ------- Run | Scr Mat Traps Triggered 5 | . 5 Indirectly . | . . Trap Hack Attempts . | . . Triggered . | . . Disarmed . | . . Reprogrammed . | . . Reused . | . . Traps Extracted . | . . Installed . | . . Triggered . | . . Machines | -11 -10 ---------- Run | Scr Mat Machines Disabled . | . . Max in Single Turn . | . . Machines Sabotaged . | . . Garrisons Compromised . | . . Overloaded Fab Kills . | . . Fab Network Shutdowns . | . . Hacking | -11 -10 --------- Run | Scr Mat Machines Accessed 3 | . 3 Terminals 3 | . 3 Fabricators . | . . Repair Stations . | . . Recycling Units . | . . Scanalyzers . | . . Garrison Access . | . . Total Hacks 12 | . 12 Successful 6 | . 6 Failed 6 | . 6 Catastrophic . | . . Database Lockouts . | . . Manual 1 | . 1 Terminals 12 | . 12 Fabricators . | . . Repair Stations . | . . Recycling Units . | . . Scanalyzers . | . . Garrison Access . | . . Terminal Hacks 6 | . 6 Robot Analysis 1 | . 1 Prototype ID Bank 1 | . 1 Locate Traps 2 | . 2 Patrol Status 1 | . 1 Investigation Status 1 | . 1 Fabricator Hacks . | . . Repair Station Hacks . | . . Recycling Unit Hacks . | . . Scanalyzer . | . . Garrison Access Hacks . | . . Unauthorized Hacks . | . . Terminals . | . . Fabricators . | . . Repair Stations . | . . Recycling Units . | . . Scanalyzers . | . . Garrison Access . | . . Data Cores Recovered . | . . Used . | . . Hacking Detections 3 | . 3 Full Trace Events . | . . Feedback Events . | . . Feedback Blocked . | . . Robot Schematics Acquired . | . . Robots Built . | . . Matter . | . . Time . | . . Total Robot Build Rating . | . . Part Schematics Acquired . | . . Parts Built . | . . Matter . | . . Time . | . . Total Part Build Rating . | . . Parts Repaired . | . . Time . | . . Parts Recycled . | . . Recycled Matter . | . . Retrieved Matter . | . . Retrieved Components . | . . Parts Scanalyzed . | . . Part Schematics Acquired . | . . Parts Damaged . | . . Bothacking | -11 -10 ------------ Run | Scr Mat Used RIF Installer . | . . Robots Hacked . | . . Non-combat . | . . Combat . | . . Robot Hacks Applied . | . . Relay Couplers Released . | . . Robots Rewired . | . . Allies Hacked . | . . Hacks Repelled . | . . Allies | -11 -10 -------- Run | Scr Mat Total Allies . | . . Largest Group . | . . Highest-Rated Group . | . . Highest-Rated Ally . | . . Total Orders . | . . Ally Attacks . | . . Total Damage . | . . Kills . | . . Allies Corrupted . | . . Allies Melted . | . . Intel | -11 -10 ------- Run | Scr Mat Robot Analysis Total 1 | . 1 Derelict Logs Recovered . | . . Drone Launches . | . . Drone Recoveries . | . . Exploration | -11 -10 ------------- Run | Scr Mat Turns Passed 753 | 77 676 Spaces Moved 422 | 67 355 Core 42 | 22 20 Treads . | . . Legs 380 | 45 335 Wheels . | . . Hover . | . . Flight . | . . Fastest Speed 50 | 50 100 Average Speed 115 | 97 119 Slowest Speed 150 | 120 150 Overloaded Moves . | . . Propulsion Burnouts . | . . Robots Hopped . | . . Cave-ins Triggered . | . . Exploration Rate (%) 33 | 4 63 Regions Visited 1 Branch Regions . Pre-discovered Areas . | . . Known Exits Taken . | . . Unknown Exits Taken 1 | 1 . Scrap Searched . | . . Spaces Dug . | . . Terrain Destroyed . | . . Melee . | . . Projectile . | . . AOE . | . . Actions | -11 -10 --------- Run | Scr Mat Total 650 | 76 574 Wait 198 | . 198 Move 421 | 66 355 Hop . | . . Pick Up 6 | 4 2 Fast Attach 7 | 6 1 Attach . | . . Detach . | . . Swap . | . . Drop . | . . Fire 18 | . 18 Melee . | . . Ram . | . . Kick . | . . Crush . | . . Escape Stasis . | . . Rewire . | . . Trap . | . . Miscellaneous . | . . Route ------- -11/Scrapyard -10/Materials (discovered 2 exits: [*Mat] / [*Min]) History --------- Turn | Location | Event 8 | -11/Scrapyard | Discovered new exit (range 16) 78 | -11/Scrapyard | Entered Materials 312 | -10/Materials | Build established: Mutant 613 | -10/Materials | Discovered new exit (range 4) 693 | -10/Materials | Discovered new exit (range 12) 733 | -10/Materials | Core integrity fell below 50% 746 | -10/Materials | Core integrity fell below 20% 754 | -10/Materials | Destroyed by S-10 Pest with Light Assault Rifle Last Messages --------------- 00696_ Aluminum Leg severed. 00699_ Triggered Blade Trap. 00699_ Massive razor-sharp blades shoot up from within the floor. 00699_ Ion Engine severed. 00701_ Triggered Blade Trap. 00701_ Massive razor-sharp blades shoot up from within the floor. 00702_ U-05 Engineer lays Concrete. 00706_ Triggered Blade Trap. 00706_ Massive razor-sharp blades shoot up from within the floor. 00712_ U-05 Engineer lays Concrete. 00715_ O-16 Technician sends out distress signal. 00715_ O-16 Technician: "IFF HANDSHAKE FAILED. SECURING TERMINAL." 00716_ U-05 Engineer lays Concrete. 00718_ ALERT: Hostiles spotted, dispatching reinforcements to Terminal M001. 00725_ R-06 Scavenger collects EM Pulse Gun. 00726_ K-01 Serf cleans the Pressure Siphon. 00728_ R-06 Scavenger collects Lgt. Assault Rifle. 00731_ R-06 Scavenger collects Shield Generator. 00731_ K-01 Serf cleans the Pressure Siphon. Map ----- +----------------------------------------------------+ | ?????????????????????????????????????????????????? | | ?????????????????????????????????????????????????? | | ?????????????????????????????????????????????????? | | ?????????????????????????????????????????????????? | | ?????????????????????????????????????????????????? | | ?????????????????????????????????????????????????? | | ?????????????????????????????????????????????????? | | ?????????????????????????????????????????????????? | | ?????????????????????????????????????????????????? | | ?????????????????????????????????????????????????? | | ?????????????????????????????????????????????????? | | ?????????????????????????????????????????????????? | | ?????????????????????????????????????????????????? | | ?????????????????????????????????????????????????? | | ?????????????????????????????????????????????????? | | ##########???????????????????????????????????????? | | " #???????????????????????????????????????? | | #???????????????????????????????????????? | | """ #???????????????????????????????????????? | | """ ??????????????????????????????????????????? | | """ ??????????????????????????????????????????? | | ######???????????????????????????????????????????? | | ##### ????????????????###??????????????????????? | | ^ ?????????????? ??????????????????????? | | ^ ^ ??????????????#s#??????????????????????? | | ^^ ??????????????#@#??????????????????????? | | # ???????????????# #??????????????????????? | | ?^ ??####?????????# #??????????????????????? | | ??? //??# ##+####s#####+##???????????????? | | ???? / ? * +???????????????? | | +???? ?? < = != #???????????????? | | #???????? """" +???????????????? | | #?????????#" "####### """" #??????? ???????? | | #??????????" !"!????????# """" #??????? ???????? | | #???????????????????????# #??????? #??????? | | #???????????????????##??#k #??????? #??????? | | ?????????????????#### ?# g #??????? #??????? | | ?????????????????# ?# ############# +??????? | | ?????????????????# # ## [ ## #??????? | | ?########????????# # ## ## ##?????? | | ?#= #????????# r ## + #?????? | | ?# """#????????# # ## # ####### | | ?# R"#????????#### ## ### # # T | | ?#* """#???????????# #??# #?# # # | | ?# #???????????##???# #?# # # | | ?? ??????????????????#%#?# # * # """ | | ####+########+#########??# #?#####+##### # """ ! | | #### ###### # """ | | + | | ##+######## # """ | +----------------------------------------------------+ Best States ------------- Heat Dissipation 25 Energy Generation 10 Energy Capacity 250 Matter Stores 300 Matter Capacity 300 Sight Range 16 Terrain Scan Density 10 Evasion (%) 50 Item Schematics ----------------- None Robot Schematics ------------------ None Fabricated ------------ Nothing Alien Tech Used ----------------- None Achievements -------------- None Challenges ------------ None Game ------ Seed HeartSurveybotDesublimator Manual? 0 Play Time 00:07:40 Cumulative 166.3 hours Start 2020.05.16 @ 23:40:21 End 2020.06.08 @ 11:02:46 Sessions 5 Manual Loads 0 Difficulty Rogue Special Mode None Game No. 107 Rogue 80 Adventurer 0 Explorer 27 Win Type - Total 4 Types 4/0/0/0/0/0/0 Lore% 62 Gallery% 67 Achievement% 58 Wizard Run 0 Options --------- ASCII 0 Keyboard 1 Movement Vi Keybinds 0 Fullscreen 1 Font 18/SmallcapsGlow Map View 76x50 Tactical HUD 1 Map Filters NONE Filters LOW_CONTRAST(47,30,31) Steam 1 RUN: 31a6afdb-ca41-4464-83d8-21693f1b4e69